bitfinex/quotes_ETHUSD_20241123
["timestamp","ask_amount","ask_price","bid_price","bid_amount"]
[1732391212134,0.03624141,3410.7,3410.6,0.2925]
[1732391212329,2.93162,3411.1,3410.6,0.2925]
[1732391212548,0.03624141,3410.7,3410.6,0.2925]
[1732391212723,0.2311,3411.0,3410.6,0.2925]
[1732391212925,0.03624141,3410.7,3410.6,0.2925]
[1732391213446,0.2311,3411.0,3410.6,2.9313]
[1732391213640,0.30775058,3410.9,3410.6,2.9313]
[1732391213987,0.2714045,3410.8,3410.6,2.9313]
[1732391214122,0.2714045,3410.8,3410.6,2.96061666]
[1732391214318,0.03624141,3410.7,3410.6,2.96061666]
[1732391214750,0.2311,3411.0,3410.7,2.63869]
[1732391215061,0.30783334,3410.9,3410.7,2.63869]
[1732391215281,0.03634608,3410.9,3410.8,2.66798654]
[1732391215786,3.74550936,3411.6,3410.9,2.63854]
[1732391216080,0.27149492,3411.5,3411.0,2.63851]
[1732391216280,0.27149492,3411.5,3410.8,2.66798654]
[1732391216281,3.20275492,3411.5,3410.8,2.66798654]
[1732391216579,3.20283492,3411.4,3410.8,2.63867]
[1732391216742,0.27149492,3411.3,3410.8,2.63867]
[1732391216939,3.74551936,3411.6,3410.8,2.63867]
[1732391217181,0.27149013,3411.2,3411.0,2.63851]
[1732391217341,0.27149013,3411.1,3411.0,2.63851]
[1732391217545,0.27149013,3411.5,3411.0,2.63851]
[1732391217753,0.27149013,3411.4,3411.0,2.63851]
[1732391218062,0.27149013,3411.3,3411.0,2.63851]
[1732391218267,0.03650306,3411.2,3411.0,2.63851]
[1732391218467,0.27149013,3411.1,3411.0,2.63851]
[1732391218865,0.30794087,3411.1,3411.0,2.63851]
[1732391219475,0.27149013,3411.1,3411.0,2.96032466]
[1732391219872,0.81432936,3411.6,3411.1,2.63843]
[1732391220184,0.27156766,3411.5,3411.2,2.6383]
[1732391220477,0.27156766,3411.4,3411.0,2.96032466]
[1732391220774,0.27156766,3411.3,3411.1,2.63842]
[1732391220941,0.27156766,3411.2,3411.1,2.63844]
[1732391221137,0.27156766,3411.2,3411.0,2.96032466]
[1732391221383,0.81432936,3411.6,3411.1,2.66770309]
[1732391221557,0.27169398,3411.5,3411.1,2.63839]
[1732391221886,0.27169398,3411.4,3410.9,0.2925]
[1732391222072,0.27169398,3411.4,3411.0,2.63844]
[1732391222248,3.74552936,3411.6,3411.2,2.63835]
[1732391222249,0.30827865,3411.3,3411.2,2.63835]
[1732391222582,0.30827865,3411.3,3411.0,0.2925]
[1732391222789,2.93164,3411.1,3410.5,0.2925]
[1732391222944,0.53922753,3411.0,3410.5,0.2925]
[1732391223147,0.27169398,3410.9,3409.8,0.7815]
[1732391223347,2.93247,3410.1,3409.4,3.42124]
[1732391223584,0.27169398,3410.0,3409.6,2.63954]
[1732391223888,0.27169398,3410.0,3409.6,0.32182415]
[1732391223889,0.27169398,3409.9,3409.6,0.32182415]
[1732391224088,0.27169398,3409.9,3409.8,2.63945]
[1732391224272,0.27169398,3409.9,3409.8,3.19952341]
[1732391224641,0.03579409,3409.9,3409.8,3.19952341]
[1732391224846,3.16305,3410.7,3409.9,2.63934]
[1732391224847,0.2721213,3410.3,3409.9,2.63934]
[1732391225055,0.3080888,3410.2,3409.9,2.63934]
[1732391225382,0.27213764,3410.1,3409.6,2.6396]
[1732391225583,0.27213764,3410.0,3409.5,3.32064941]
[1732391225790,0.30793173,3409.9,3409.6,2.63957]
[1732391225950,0.27213764,3409.8,3409.5,0.2925]
[1732391226289,0.27213764,3409.8,3409.7,2.63952]
[1732391226587,0.2311,3410.7,3409.8,2.63938]
[1732391226588,0.27225592,3410.2,3409.8,2.63938]
[1732391226753,0.27225676,3410.1,3409.9,2.63935]
[1732391226949,0.27225676,3410.0,3409.9,2.63935]
[1732391227454,0.27225676,3410.0,3409.7,5.27899]
[1732391227792,0.27225676,3409.9,3409.7,2.63947]
[1732391227948,0.27225676,3409.8,3409.7,2.63947]
[1732391228689,0.3079941,3409.8,3409.5,2.63967]
[1732391228869,0.27225676,3409.7,3409.5,0.2925]
[1732391229076,0.30788936,3409.6,3409.4,2.63975]
[1732391229258,0.27225676,3409.5,3408.7,8.45146413]
[1732391229459,0.30778754,3409.4,3409.0,2.64003]
[1732391229657,0.27225676,3409.3,3409.0,2.64003]
[1732391229851,0.30768059,3409.2,3408.8,3.88337574]
[1732391230071,0.30768059,3409.2,3408.7,2.64027]
[1732391230072,0.27225676,3409.1,3408.7,2.64027]
[1732391230283,0.30757582,3409.0,3408.7,2.64027]
[1732391230595,0.27225676,3408.9,3408.7,2.64027]
[1732391230744,0.30715678,3408.8,3408.7,2.93277]
[1732391231256,0.30698357,3408.8,3408.7,2.93277]
[1732391231458,0.03521427,3408.8,3408.7,2.93277]
[1732391231696,3.1642,3409.4,3408.7,2.93277]
[1732391231981,0.03504589,3408.8,3408.7,5.93277]
[1732391232183,0.2311,3409.4,3408.8,2.66949083]
[1732391232393,0.27170062,3409.3,3408.8,2.66949083]
[1732391232685,0.27170062,3409.2,3408.8,0.0293309]
[1732391232862,0.27170062,3409.1,3408.8,2.6694809]
[1732391233192,2.93291,3409.6,3408.9,2.64008]
[1732391233361,2.93299,3409.5,3409.0,0.02933085]
[1732391233684,3.20468505,3409.4,3408.6,1.0547]
[1732391234020,0.27161505,3409.3,3408.8,2.64022]
[1732391234783,0.27161505,3409.3,3408.9,2.64011]
[1732391234950,0.27161505,3409.2,3409.0,0.02933093]
[1732391235149,2.93298,3409.5,3408.8,2.64022]
[1732391235351,0.27139484,3409.4,3408.8,2.64022]
[1732391235590,0.27139484,3409.3,3408.8,2.64022]
[1732391235794,0.27139484,3409.2,3408.6,0.7622]
[1732391235976,0.03524666,3409.2,3408.9,2.64008]
[1732391236289,3.0,3409.6,3409.1,2.63999]
[1732391236493,0.27134856,3409.5,3409.1,2.63999]
[1732391236659,0.27134856,3409.4,3409.1,2.63999]
[1732391236868,3.0,3409.6,3409.1,2.63999]
[1732391237063,3.0,3409.6,3409.0,0.02933089]
[1732391237064,5.93295,3409.6,3409.0,0.02933089]
[1732391237399,0.27138319,3409.5,3409.1,2.63998]
[1732391237575,0.27136122,3409.4,3409.1,2.63998]
[1732391237803,3.0,3409.6,3409.1,2.63998]
[1732391237983,0.27136096,3409.5,3409.1,2.63998]
[1732391238189,0.27136096,3409.4,3409.1,0.7849]
[1732391238389,0.27136096,3409.7,3409.3,2.63983]
[1732391238595,0.27134462,3409.6,3409.1,0.7849]
[1732391238786,3.0,3409.9,3409.3,2.63983]
[1732391239030,0.27135434,3409.8,3409.3,2.66915687]
[1732391239180,0.27135434,3409.7,3409.3,2.66915687]
[1732391239522,0.30681563,3409.6,3409.3,2.63983]
[1732391239718,0.30681563,3409.6,3409.3,2.66915708]
[1732391239719,0.03546129,3409.6,3409.3,2.66915708]
[1732391240006,3.0,3409.9,3409.3,2.63983]
[1732391240007,0.27134221,3409.5,3409.3,2.63983]
[1732391240216,0.03535654,3409.4,3409.3,2.63983]
[1732391240374,0.27139101,3409.7,3409.3,2.63983]
[1732391240571,0.3068523,3409.6,3408.9,2.64014]
[1732391240801,0.3068523,3409.6,3408.4,5.45166413]
[1732391240802,3.20444101,3409.5,3408.8,3.42511]
[1732391241003,0.27139101,3409.4,3408.8,3.42511]
[1732391241296,0.27139101,3409.3,3408.8,0.7849]
[1732391241498,0.27139101,3409.3,3408.6,2.64036]
[1732391241499,0.27139101,3409.2,3408.6,2.64036]
[1732391241676,0.27139101,3409.1,3408.6,3.18844819]
[1732391241892,0.30652775,3409.0,3408.6,3.18844819]
[1732391242086,0.03513674,3409.0,3408.6,3.18844819]
[1732391242278,0.03513674,3409.0,3408.7,2.34693]
[1732391242480,2.93306,3409.4,3408.7,2.34693]
[1732391242682,0.30536465,3409.3,3408.7,2.34693]
[1732391243017,2.93334,3409.1,3408.5,0.02933095]
[1732391243225,0.27129357,3409.0,3408.4,3.13204]
[1732391243380,0.27129357,3408.9,3408.4,3.13204]
[1732391243781,0.03253065,3408.8,3408.4,3.13204]
[1732391244179,0.03253065,3408.8,3408.5,0.2925]
[1732391244528,0.03247825,3408.7,3408.5,0.2925]
[1732391245115,0.03242585,3408.6,3408.5,2.63956]
[1732391245560,2.93315,3409.3,3408.5,2.63956]
[1732391245720,39.3053661,3412.1,3408.5,2.63956]
[1732391245721,0.03242585,3408.6,3408.5,2.63956]
[1732391246044,2.93307,3409.4,3408.7,0.2925]
[1732391246218,3.23722809,3409.3,3408.7,0.2925]
[1732391246425,3.2045055,3409.2,3408.7,0.2925]
[1732391246740,0.30395332,3409.1,3408.7,0.2925]
[1732391246907,0.2712655,3409.0,3408.4,3.42452]
[1732391247107,3.2046855,3409.0,3408.4,3.42452]
[1732391247335,0.30381705,3408.9,3408.4,3.42452]
[1732391247502,0.2712655,3408.8,3408.4,3.42452]
[1732391247705,0.2712655,3408.8,3408.3,0.2925]
[1732391247905,0.03110818,3408.7,3408.3,0.2925]
[1732391248357,0.27142979,3408.6,3408.3,2.63969]
[1732391248646,0.03482308,3408.6,3408.3,0.2925]
[1732391248950,0.2311,3409.0,3407.8,6.46374]
[1732391248951,2.93392,3408.4,3407.8,6.46374]
[1732391249249,0.30601428,3408.3,3407.8,6.17124]
[1732391249449,0.27140421,3408.2,3407.8,0.85303908]
[1732391249634,0.03461007,3408.3,3407.8,3.91858064]
[1732391249947,0.2311,3409.0,3407.8,0.85303908]
[1732391249948,0.03454456,3408.2,3407.8,0.85303908]
[1732391250106,2.96865456,3408.2,3407.6,2.34768]
[1732391250306,0.27135028,3408.1,3407.6,2.34768]
[1732391250543,2.93411,3408.2,3407.6,2.34768]
[1732391250715,0.03441352,3408.0,3407.7,2.34761]
[1732391250921,0.03447904,3408.1,3407.7,2.34761]
[1732391251149,0.03434799,3407.9,3407.8,2.37682998]
[1732391251311,0.2311,3408.4,3407.9,2.34745]
[1732391251513,0.27139233,3408.3,3407.8,0.02933998]
[1732391251711,0.0345597,3408.3,3407.8,2.37686998]
[1732391251908,0.27139569,3408.2,3407.8,2.37686998]
[1732391252209,2.93376,3408.6,3407.8,2.37686998]
[1732391252210,0.30594442,3408.1,3407.8,3.22818725]
[1732391252422,0.03442866,3408.1,3407.8,2.37686998]
[1732391252623,2.93384,3408.5,3407.9,2.34747]
[1732391252842,0.30606866,3408.4,3407.9,2.34747]
[1732391253042,0.27151763,3408.3,3407.9,2.34747]
[1732391253246,0.03455103,3408.4,3407.9,2.34747]
[1732391253247,0.27151763,3408.2,3407.9,2.34747]
[1732391253451,0.03455103,3408.4,3407.9,2.34747]
[1732391253609,2.93384,3408.5,3407.9,2.34747]
[1732391253610,0.03435449,3408.1,3407.9,2.34747]
[1732391253939,2.93384,3408.5,3407.9,2.34747]
[1732391254139,0.03740015,3408.0,3407.8,0.02933998]
[1732391254311,2.93401,3408.3,3407.5,5.45144413]
[1732391254513,0.03732867,3407.9,3407.6,2.34768]
[1732391254731,2.93401,3408.3,3407.6,2.34768]
[1732391255049,3.20551537,3408.2,3407.6,2.34768]
[1732391255246,0.27141537,3408.1,3407.7,2.34762]
[1732391255453,0.03747163,3408.1,3407.9,2.34747]
[1732391255624,3.16478,3408.7,3408.0,2.34741]
[1732391255812,3.20522014,3408.6,3408.0,2.34741]
[1732391256014,0.27144014,3408.5,3408.0,2.34741]
[1732391256230,0.27144014,3408.5,3407.8,2.37685016]
[1732391256231,2.93399,3408.4,3407.8,2.37685016]
[1732391256440,0.27144014,3408.3,3407.8,2.37685016]
[1732391256750,0.30896426,3408.2,3407.8,2.37685016]
[1732391256910,0.27144014,3408.1,3407.8,2.37685016]
[1732391257107,0.30884981,3408.0,3407.9,2.34747]
[1732391257341,0.03738116,3408.0,3407.9,2.34747]
[1732391257541,0.03738116,3408.0,3407.8,2.37689016]
[1732391257844,3.16479,3408.7,3407.8,0.81216559]
[1732391257845,0.03731068,3407.9,3407.8,0.81216559]
[1732391258047,3.16479,3408.7,3408.0,2.34738]
[1732391258346,0.30933655,3408.6,3408.1,0.02933861]
[1732391258551,0.27152558,3408.5,3408.1,0.02933861]
[1732391259111,0.04143486,3408.4,3408.1,0.32183861]
[1732391259345,0.27158319,3408.3,3408.1,0.02933861]
[1732391259651,0.04143486,3408.4,3408.2,2.34726]
[1732391259849,0.27158931,3408.3,3408.2,2.34726]
[1732391260448,3.16457,3409.0,3408.4,2.34714]
[1732391260647,0.271624,3408.9,3408.4,2.37647599]
[1732391260834,0.271624,3408.8,3408.4,2.37647599]
[1732391261035,0.271624,3408.7,3408.4,2.37647599]
[1732391261235,0.271624,3408.6,3408.5,2.34702]
[1732391261540,0.3062923,3408.6,3408.5,2.34702]
[1732391261935,0.3062923,3408.6,3408.4,2.37645599]
[1732391262248,0.27167298,3408.5,3408.4,2.34712]
[1732391262462,0.27167676,3408.5,3408.2,4.69447]
[1732391262615,0.03778848,3408.5,3408.2,2.34722]
[1732391262962,0.2311,3408.7,3408.2,2.34727]
[1732391263122,0.27170776,3408.6,3408.2,2.34727]
[1732391263322,0.27170776,3408.5,3408.2,2.34727]
[1732391263714,0.03456752,3408.4,3408.2,2.34727]
[1732391264230,0.2311,3408.7,3408.2,2.34727]
[1732391264426,0.03451851,3408.3,3408.2,2.34727]
[1732391264835,0.2311,3408.7,3408.2,2.34727]
[1732391265153,0.27172407,3408.6,3408.3,0.02933693]
[1732391265310,0.03471503,3408.6,3408.4,2.34708]
[1732391265516,2.93316,3409.3,3408.6,0.8283]
[1732391265756,0.30689391,3409.2,3408.7,0.02933331]
[1732391265957,0.27179601,3409.1,3408.7,2.37621331]
[1732391266256,0.03496693,3409.0,3408.7,2.37621331]
[1732391266550,0.27183815,3408.9,3408.7,2.37621331]
[1732391266845,0.27183815,3408.9,3408.4,2.34711]
[1732391266846,0.27183815,3408.8,3408.4,2.34714]
[1732391267051,0.27183815,3408.7,3408.4,2.34714]
[1732391267224,0.27183815,3408.6,3408.4,2.37647507]
[1732391267415,0.27183815,3408.6,3408.4,2.34714]
[1732391267611,0.03463945,3408.5,3408.4,2.34714]
[1732391267861,0.3064776,3408.5,3408.0,3.0]
[1732391268027,0.3064776,3408.5,3408.3,2.34716]
[1732391268028,0.27183815,3408.4,3408.3,2.34716]
[1732391268556,0.30377285,3408.4,3408.1,2.34729]
[1732391268756,0.0319347,3408.4,3408.2,2.34725]
[1732391269052,0.0319347,3408.4,3408.3,2.37654697]
[1732391269261,0.27201338,3408.8,3408.3,2.37654697]
[1732391269554,0.27201338,3408.7,3408.3,0.02933697]
[1732391269755,0.27201338,3408.6,3408.2,2.34724]
[1732391270059,0.27201338,3408.6,3408.1,0.02933695]
[1732391270060,0.27201338,3408.6,3408.3,2.376547]
[1732391270227,0.03466144,3408.5,3408.3,0.029337]
[1732391270433,0.27201338,3408.4,3408.3,0.029337]
[1732391270629,0.27201338,3408.4,3408.2,2.37660719]
[1732391270833,0.30660931,3408.4,3408.2,2.37660719]
[1732391271036,0.27201338,3408.3,3408.2,2.37660719]
[1732391271348,0.3065438,3408.3,3408.2,2.37660719]
[1732391271745,0.3065438,3408.3,3408.2,2.34727]
[1732391273775,0.30684263,3408.3,3408.2,2.34727]
[1732391274071,0.55,3407.9,3406.6,0.01293839]
[1732391274249,2.93518,3407.0,3406.6,0.01293839]
[1732391274452,0.27231221,3406.9,3406.6,0.01293839]
[1732391274653,0.27231221,3406.8,3406.6,0.01293839]
[1732391274856,0.27231221,3406.7,3406.6,0.01293839]
[1732391275039,0.31229458,3406.7,3406.6,2.36131839]
[1732391275462,0.27231221,3406.7,3406.6,0.01293839]
[1732391275974,0.03634761,3406.7,3406.6,0.01293839]
[1732391276453,0.03548197,3407.7,3406.6,0.01293839]
[1732391276454,2.93428,3408.0,3406.7,0.7521]
[1732391276628,3.2059094,3407.9,3407.1,2.34797]
[1732391276828,0.2714994,3407.8,3407.2,2.34796]
[1732391277027,0.64235028,3407.8,3407.2,2.34796]
[1732391277266,0.37085088,3407.8,3407.2,2.34796]
[1732391277563,0.37085088,3407.8,3407.3,0.02934557]
[1732391277564,0.31217934,3407.7,3407.3,0.02934557]
[1732391277778,0.2714741,3407.6,3407.3,0.02934557]
[1732391277925,0.3121007,3407.6,3407.3,2.37720557]
[1732391278130,0.2714741,3407.5,3407.3,0.02934557]
[1732391278372,0.04046929,3407.4,3407.3,2.37724557]
[1732391278538,0.04046929,3407.4,3407.3,2.3479]
[1732391278864,0.04046929,3407.4,3407.2,2.37730577]
[1732391279068,2.93437,3407.9,3407.2,2.37730577]
[1732391279286,3.1653,3408.1,3407.2,2.37730577]
[1732391279287,0.04039063,3407.3,3407.2,2.37730577]
[1732391279584,3.1653,3408.1,3407.4,2.34778]
[1732391279585,3.48183,3408.1,3407.4,2.34778]
[1732391279873,0.27148285,3408.0,3407.4,2.34778]
[1732391280183,0.27148285,3407.9,3407.4,2.34778]
[1732391280377,0.27148285,3407.9,3407.4,2.37712314]
[1732391280582,0.04082788,3407.8,3407.4,2.37712314]
[1732391280781,0.27148285,3407.7,3407.4,2.34778]
[1732391280943,0.27146704,3407.6,3407.4,2.34778]
[1732391281143,0.0406706,3407.6,3407.4,2.892564]
[1732391281474,3.0,3408.5,3407.5,2.34776]
[1732391281475,3.16503,3408.4,3407.5,2.34776]
[1732391281674,3.16503,3408.4,3407.7,2.34758]
[1732391281675,0.31267595,3408.3,3407.7,2.34758]
[1732391281875,0.27145493,3408.2,3407.7,2.34758]
[1732391282241,0.04106378,3408.1,3407.7,2.34761]
[1732391282443,0.27145493,3408.0,3407.7,2.87455944]
[1732391282662,0.04090652,3407.9,3407.7,2.87455944]
[1732391282853,0.04090652,3407.9,3407.8,2.37689055]
[1732391283077,0.04090652,3407.9,3407.8,3.12899055]
[1732391283389,0.2311,3408.7,3408.0,2.34735]
[1732391283591,0.2311,3408.7,3408.2,2.34724]
[1732391283886,2.93343,3409.0,3408.5,2.34707]
[1732391283887,0.31310158,3408.6,3408.5,2.34707]
[1732391284246,0.31310158,3408.6,3408.4,2.34713]
[1732391284447,0.27160735,3408.5,3408.4,2.34713]
[1732391284643,0.30925792,3408.5,3408.4,2.34713]
[1732391284847,0.03765057,3408.5,3408.4,3.09923]
[1732391285090,2.93318,3409.3,3408.6,2.34699]
[1732391285391,0.30986747,3409.2,3408.6,2.37632331]
[1732391285692,0.27171678,3409.1,3408.6,0.02933331]
[1732391285992,0.27171678,3409.1,3409.0,2.34672]
[1732391286291,0.27171678,3409.1,3409.0,3.09882]
[1732391286594,0.03507544,3409.1,3409.0,3.09882]
[1732391286832,0.27171678,3409.5,3409.0,3.09882]
[1732391287121,0.03507544,3409.1,3409.0,3.09882]
[1732391287336,2.93265,3409.9,3409.3,2.34652]
[1732391287487,0.2716497,3409.8,3409.3,2.34652]
[1732391287682,0.2716497,3409.7,3409.3,2.34652]
[1732391287905,0.2716497,3409.6,3409.3,2.34652]
[1732391288106,0.2716497,3409.5,3409.3,2.34652]
[1732391288422,0.30692157,3409.4,3409.3,2.34652]
[1732391289025,0.03527187,3409.4,3409.3,2.34652]
[1732391289383,0.2311,3410.0,3409.3,0.02932725]
[1732391289587,0.03532864,3409.4,3409.3,3.13514725]
[1732391289898,2.93196,3410.7,3409.9,2.34605]
[1732391290115,0.79577584,3410.6,3410.0,0.02932239]
[1732391290446,0.27147984,3410.5,3410.0,0.7593]
[1732391290724,0.27136556,3410.4,3410.1,2.34596]
[1732391290926,0.2311,3410.6,3410.1,2.34596]
[1732391290927,0.27136556,3410.3,3410.1,2.34596]
[1732391291138,0.2311,3410.6,3409.5,3.10567]
[1732391291139,3.20374556,3410.2,3409.5,3.10567]
[1732391291290,0.2311,3410.0,3409.5,2.34637]
[1732391291493,0.61485912,3409.9,3409.3,2.3465]
[1732391291800,0.27136556,3409.8,3409.3,2.3465]
[1732391292129,0.27136556,3409.7,3408.9,0.7593]
[1732391292424,0.0327674,3409.6,3409.5,2.34638]
[1732391292832,0.2311,3410.0,3409.5,2.34638]
[1732391292994,0.03042687,3409.6,3409.5,2.34638]
[1732391293191,0.2311,3410.3,3409.5,0.7593]
[1732391293427,0.2311,3410.3,3409.5,3.10567]
[1732391293428,3.20361757,3410.2,3409.5,3.10567]
[1732391293728,0.2311,3410.3,3409.5,3.10567]
[1732391293729,0.27124757,3410.1,3409.6,2.37563391]
[1732391293890,3.0,3410.5,3409.7,2.34624]
[1732391294274,3.16313,3410.6,3409.7,2.34624]
[1732391294275,3.0,3410.2,3409.7,2.34624]
[1732391294565,0.2712443,3410.1,3409.6,2.34627]
[1732391294767,5.93226,3410.4,3409.7,2.37550285]
[1732391294768,0.2712443,3410.0,3409.7,2.37550285]
[1732391295066,0.9411873,3410.4,3409.8,2.34617]
[1732391295265,0.27103499,3410.3,3410.1,2.34592]
[1732391295484,0.2311,3410.6,3410.1,2.3752408]
[1732391295640,0.27102176,3410.5,3410.2,2.37517078]
[1732391295846,0.2311,3411.1,3410.3,2.34578]
[1732391296169,0.27103242,3411.0,3410.4,0.02931763]
[1732391296337,0.27103242,3410.9,3410.3,2.37509763]
[1732391296540,0.27103242,3410.8,3410.3,2.37509763]
[1732391296865,0.27103242,3410.8,3410.1,3.10526]
[1732391296866,0.3455862,3411.0,3410.4,0.02931845]
[1732391297066,0.27089738,3410.9,3410.3,2.37513845]
[1732391297238,0.2311,3411.1,3410.3,2.34582]
[1732391297428,0.270777,3411.0,3410.3,2.34582]
[1732391297630,0.270777,3410.9,3410.4,2.34574]
[1732391297854,3.67882267,3410.9,3410.1,3.10526]
[1732391298056,0.27081152,3410.8,3410.1,2.34596]
[1732391298273,0.2311,3410.6,3409.9,2.3461]
[1732391298427,3.16315,3410.6,3409.9,2.3461]
[1732391298632,2.93214,3410.5,3409.8,2.34617]
[1732391298872,0.67154502,3410.4,3409.8,2.34617]
[1732391299237,0.2311,3410.6,3410.0,2.34602]
[1732391299640,0.03078263,3410.5,3410.0,2.34602]
[1732391299873,0.03078263,3410.5,3409.9,2.37542324]
[1732391300277,0.35016689,3410.5,3410.0,2.34602]
[1732391300574,0.35016689,3410.5,3409.9,0.02932324]
[1732391300883,0.03078263,3410.5,3409.9,2.3461]
[1732391301083,3.16314,3410.6,3409.8,0.02932324]
[1732391301373,0.6095,3410.5,3410.0,2.34602]
[1732391301815,0.6095,3410.5,3410.1,2.34596]
[1732391301816,0.03072655,3410.4,3410.1,2.34596]
[1732391302387,0.03072655,3410.4,3409.9,2.34607]
[1732391302588,0.38033665,3410.3,3409.6,2.3463]
[1732391302807,0.2311,3410.2,3409.6,2.3463]
[1732391302992,0.2311,3410.2,3409.7,2.37555505]
[1732391302993,0.26171437,3410.2,3409.7,2.37555505]
[1732391303493,0.3574321,3410.1,3409.7,2.34623]
[1732391303704,0.3574321,3410.1,3409.7,2.37555505]
[1732391303881,0.03558588,3410.0,3409.9,2.3461]
[1732391304077,0.03558588,3410.0,3409.7,2.37555505]
[1732391304276,0.2311,3410.2,3409.7,2.37555505]
[1732391304583,0.03054651,3410.1,3409.8,2.34616]
[1732391305182,0.03054651,3410.1,3409.8,2.34617]
[1732391305908,0.03054651,3410.1,3409.5,2.34637]
[1732391306228,0.65387609,3410.1,3409.5,2.34637]
[1732391306430,0.65387609,3410.1,3409.6,2.34631]
[1732391306730,2.93261,3410.0,3409.3,2.34647]
[1732391306937,0.04117113,3409.9,3409.4,2.34643]
[1732391307259,0.2311,3409.6,3409.0,5.34672]
[1732391307536,0.04085692,3409.5,3409.0,2.34672]
[1732391307745,0.04085692,3409.5,3408.6,2.34699]
[1732391307746,2.96855197,3409.4,3408.6,2.34699]
[1732391307904,0.04060863,3409.3,3408.8,2.3468]
[1732391308110,2.93316,3409.3,3408.7,2.34693]
[1732391308310,0.04053006,3409.2,3408.7,2.34693]
[1732391308514,2.97377006,3409.2,3408.5,3.10636]
[1732391308934,0.04053006,3409.2,3408.7,2.34688]
[1732391309207,0.27178161,3409.1,3408.5,5.45337]
[1732391309408,0.2311,3409.0,3408.5,2.34702]
[1732391309752,0.2714729,3409.0,3408.5,2.34702]
[1732391309949,0.92516116,3409.0,3408.2,0.7772]
[1732391310122,0.27177042,3408.9,3408.5,2.347]
[1732391310317,0.04015421,3408.8,3408.5,2.347]
[1732391310653,0.2311,3409.0,3408.3,2.34721]
[1732391310817,0.04007561,3408.7,3408.2,3.7772]
[1732391311011,3.481017,3409.0,3408.2,3.7772]
[1732391311012,2.93363,3408.8,3408.2,3.7772]
[1732391311213,2.97381042,3408.6,3408.0,3.0]
[1732391311433,3.0137231,3408.7,3408.0,3.0]
[1732391311638,0.04434646,3408.5,3408.1,2.37663806]
[1732391311817,0.0444338,3408.6,3408.1,0.02933806]
[1732391312119,0.04434646,3408.5,3408.1,0.40999187]
[1732391312321,3.16426,3409.3,3408.4,3.12434]
[1732391312523,3.25021292,3409.2,3408.6,2.34698]
[1732391312743,0.2719852,3409.1,3408.6,2.34698]
[1732391312956,0.0447831,3409.0,3408.6,2.34698]
[1732391313241,0.2719852,3408.9,3408.6,2.34698]
[1732391313551,0.04460846,3408.8,3408.7,2.34692]
[1732391313751,0.31659366,3408.8,3408.7,2.34692]
[1732391314305,0.3168139,3408.8,3408.7,2.34692]
[1732391314511,0.3168139,3408.8,3408.5,2.34705]
[1732391314709,0.27220544,3408.7,3408.5,2.34705]
[1732391315010,0.0444338,3408.6,3408.5,2.34705]
[1732391315321,0.27219578,3409.0,3408.4,0.7772]
[1732391315520,2.97819578,3408.9,3408.1,0.7772]
[1732391315719,3.16481,3408.7,3408.0,2.34735]
[1732391315948,0.31662909,3408.6,3408.0,2.34735]
[1732391316131,0.27219529,3408.5,3408.0,2.34735]
[1732391316333,0.0444338,3408.6,3408.5,2.34707]
[1732391316644,0.2311,3409.1,3408.6,2.34698]
[1732391316813,0.27210574,3409.0,3408.5,3.15360515]
[1732391317014,0.27210574,3408.9,3408.5,3.12427]
[1732391317218,0.27210574,3408.8,3408.3,2.34719]
[1732391317436,0.27210574,3408.7,3408.3,2.34719]
[1732391317643,0.27210574,3408.6,3408.3,2.34719]
[1732391317828,2.93367,3408.7,3408.1,5.34733]
[1732391318151,0.31645845,3408.6,3408.1,2.34733]
[1732391318460,0.0444338,3408.6,3408.1,2.34733]
[1732391318833,0.0444338,3408.6,3408.0,3.0]
[1732391318834,2.93383,3408.6,3408.0,3.0]
[1732391319031,0.27544646,3408.5,3407.9,2.34748]
[1732391319254,0.27544646,3408.5,3408.0,3.0]
[1732391319557,0.27544646,3408.5,3408.0,2.34741]
[1732391320259,0.27544646,3408.5,3407.8,2.34754]
[1732391320459,0.04434646,3408.5,3408.3,2.3472]
[1732391320683,0.2311,3408.8,3408.3,2.3472]
[1732391320975,0.27182258,3408.7,3407.8,5.34754]
[1732391321276,3.20565258,3408.6,3407.8,5.34754]
[1732391321443,3.20569258,3408.5,3407.8,5.34754]
[1732391321642,3.20569258,3408.5,3407.7,0.7772]
[1732391321643,2.97821646,3408.5,3407.9,2.34748]
[1732391321853,3.5960633,3408.5,3407.9,2.34748]
[1732391322030,3.5960633,3408.5,3407.6,2.34765]
[1732391322031,0.2311,3408.2,3407.6,2.34765]
[1732391322234,0.27544646,3408.5,3408.0,2.34736]
[1732391322469,0.04385056,3408.1,3408.0,2.37670161]
[1732391322677,0.2311,3408.5,3408.1,2.34734]
[1732391322971,0.04411262,3408.4,3408.1,2.34734]
[1732391323134,0.04411262,3408.4,3408.2,2.34727]
[1732391323777,3.16466,3408.9,3408.2,2.34727]
[1732391323985,0.04402527,3408.3,3408.2,2.34727]
[1732391324131,3.774459,3408.9,3408.3,2.3472]
[1732391324338,0.31607532,3408.8,3408.3,2.3472]
[1732391324540,0.27161336,3408.7,3408.1,3.15384865]
[1732391324837,0.31590066,3408.6,3408.2,2.34727]
[1732391325149,0.0442873,3408.6,3408.4,2.34713]
[1732391325345,0.6142612,3408.8,3408.3,2.3472]
[1732391325679,0.31600104,3408.7,3408.3,2.3472]
[1732391325840,0.04437463,3408.7,3408.3,2.3472]
[1732391326041,0.04437463,3408.7,3408.1,3.12454]
[1732391326268,0.27171362,3408.6,3408.1,3.12454]
[1732391326581,0.03985857,3408.6,3408.2,2.34727]
[1732391326739,0.03985857,3408.6,3408.3,2.37653855]
[1732391326937,0.2311,3408.9,3408.5,2.34707]
[1732391327164,0.3117438,3408.8,3408.5,2.34707]
[1732391327362,0.27172804,3408.7,3408.5,2.34707]
[1732391327580,0.03985857,3408.6,3408.5,2.34707]
[1732391328105,0.03985857,3408.6,3408.1,0.7772]
[1732391328405,2.93365,3408.8,3408.1,3.12452]
[1732391328604,0.27190468,3408.7,3408.1,3.12452]
[1732391328908,0.27190468,3408.6,3408.2,2.34721]
[1732391329204,0.04415478,3408.5,3408.3,2.3472]
[1732391329564,0.2311,3408.9,3408.3,2.3472]
[1732391329764,0.2311,3408.9,3408.1,0.7772]
[1732391329765,0.31635301,3408.8,3408.6,2.34696]